lending/lending_fUSD_20260124
["ID","MTS","AMOUNT","RATE_DAILY","PERIOD"]
[403248486,1769279436447,-500.0,0.00012878,2]
[403248487,1769279436456,-500.0,0.00012878,2]
[403248488,1769279436465,-250.0,0.00012878,2]
[403248489,1769279436475,-250.0,0.00012878,2]
[403248490,1769279436484,-250.0,0.00012878,2]
[403248491,1769279436493,-250.0,0.00012878,2]
[403248492,1769279436503,-151.0,0.00012878,2]
[403248493,1769279436512,-312.60820425,0.00012878,2]
[403248494,1769279436521,-151.0,0.00012878,2]
[403248495,1769279436530,-151.0,0.00012878,2]
[403248496,1769279436539,-151.0,0.00012878,2]
[403248497,1769279436548,-151.0,0.00012878,2]
[403248498,1769279436557,-151.0,0.00012878,2]
[403248499,1769279436567,-151.0,0.00012878,2]
[403248500,1769279436576,-151.0,0.00012878,2]
[403248501,1769279436590,-151.0,0.00012878,2]
[403248502,1769279436600,-151.0,0.00012878,2]
[403248503,1769279436611,-151.0,0.00012878,2]
[403248504,1769279436620,-151.0,0.00012879,2]
[403248505,1769279436629,-214.79667536,0.00012935,2]
[403248506,1769279436638,-13196.5583287,0.00012935,2]
[403248507,1769279436648,-10014.89681194,0.00012935,2]
[403248508,1769279436657,-151.0,0.00013049,2]
[403248509,1769279436667,-151.0,0.00013056,2]
[403248510,1769279436676,-151.0,0.00013064,2]
[403248511,1769279436685,-200.0,0.00013067,2]
[403248512,1769279436695,-1500.0,0.00013296,2]
[403248513,1769279436704,-1497.73333874,0.00013296,2]
[403248514,1769279436713,-1500.0,0.00013296,2]
[403248515,1769279436722,-1500.0,0.00013296,2]
[403248516,1769279436731,-1500.0,0.00013296,2]
[403248517,1769279436743,-1500.0,0.00013296,2]
[403248518,1769279436752,-1500.0,0.00013296,2]
[403248519,1769279436761,-1500.0,0.00013296,2]
[403248520,1769279436770,-1500.0,0.00013296,2]
[403248521,1769279436779,-1500.0,0.00013296,2]
[403248522,1769279436788,-262.5256687,0.00013426,2]
[403248523,1769279436798,-885.86649465,0.00013426,2]
[403248524,1769279436806,-230.16041742,0.00013426,2]
[403248525,1769279436815,-370.61215459,0.00013426,2]
[403248526,1769279436824,-1102.0,0.00013538,2]
[403248527,1769279436834,-1815.48733601,0.00013644,2]
[403248528,1769279436843,-500.0,0.00013698,2]
[403248529,1769279436852,-500.0,0.00013698,2]
[403248530,1769279436861,-197.58025142,0.00013698,2]
[403248531,1769279436870,-500.0,0.00013698,2]
[403248532,1769279436879,-500.0,0.00013698,2]
[403248533,1769279436888,-500.0,0.00013698,2]
[403248534,1769279436898,-165.97106181,0.00013698,2]
[403248535,1769279436907,-500.0,0.00013698,2]
[403248536,1769279436917,-502.44260764,0.00013698,2]
[403248537,1769279436926,-448.17762938,0.00013698,2]
[403248538,1769279436935,-500.0,0.00013698,2]
[403248539,1769279436944,-500.0,0.00013698,2]
[403248540,1769279436954,-500.0,0.00013698,2]
[403248541,1769279436963,-500.0,0.00013698,2]
[403248542,1769279436971,-500.0,0.00013698,2]
[403248543,1769279436981,-500.0,0.00013698,2]
[403248544,1769279436990,-500.0,0.00013698,2]
[403248545,1769279436999,-500.0,0.00013698,2]
[403248546,1769279437009,-500.0,0.00013698,2]
[403248547,1769279437018,-500.0,0.00013698,2]
[403248548,1769279437027,-500.0,0.00013698,2]
[403248549,1769279437036,-500.0,0.00013698,2]
[403248550,1769279437045,-226.94622895,0.00013698,2]
[403248551,1769279437054,-500.0,0.00013698,2]
[403248552,1769279437063,-506.97630376,0.00013698,2]
[403248553,1769279437072,-342.1996177,0.00013698,2]
[403248554,1769279437081,-500.0,0.00013698,2]
[403248555,1769279437091,-500.0,0.00013698,2]
[403248556,1769279437100,-541.65463355,0.00013698,2]
[403248557,1769279437110,-500.0,0.00013698,2]
[403248558,1769279437123,-500.0,0.00013698,2]
[403248559,1769279437132,-500.0,0.00013698,2]
[403248560,1769279437142,-233.17455593,0.00013698,2]
[403248561,1769279437151,-500.0,0.00013698,2]
[403248562,1769279437161,-500.0,0.00013698,2]
[403248563,1769279437171,-306.06500178,0.00013698,2]
[403248564,1769279437180,-500.0,0.00013698,2]
[403248565,1769279437189,-500.0,0.00013698,2]
[403248566,1769279437199,-500.0,0.00013698,2]
[403248567,1769279437208,-500.0,0.00013698,2]
[403248568,1769279437218,-688.89,0.00013698,2]
[403248569,1769279437227,-688.89,0.00013698,2]
[403248570,1769279437236,-688.89,0.00013698,2]
[403248576,1769279437489,-688.89,0.00013698,2]
[403248577,1769279437530,-500.0,0.00013698,2]
[403248578,1769279437540,-501.01289097,0.00013698,2]
[403248579,1769279437550,-500.0,0.00013698,2]
[403248580,1769279437559,-500.0,0.00013698,2]
[403248581,1769279437568,-500.0,0.00013698,2]
[403248582,1769279437577,-500.0,0.00013698,2]
[403248583,1769279437587,-500.0,0.00013698,2]
[403248584,1769279437596,-500.0,0.00013698,2]
[403248585,1769279437607,-462.63319291,0.00013698,2]
[403248586,1769279437618,-3062.56,0.00013699,2]
[403248587,1769279437629,-500.0,0.00013699,2]
[403248588,1769279437638,-500.0,0.00013699,2]
[403248589,1769279437648,-500.0,0.00013699,2]
[403248590,1769279437658,-570.0,0.00013699,2]
[403248591,1769279437667,-13196.5583287,0.00013762,2]
[403248592,1769279437678,-10014.89681194,0.00013762,2]
[403248593,1769279437687,-250.0,0.00013796,2]
[403248594,1769279437696,-736.0,0.00013823,2]
[403248595,1769279437705,-2000.0,0.00013844,2]
[403248596,1769279437714,-2000.0,0.00013844,2]
[403248597,1769279437723,-446.80273923,0.00013844,2]
[403248598,1769279437732,-2000.0,0.00013844,2]
[403248599,1769279437741,-2000.0,0.00013844,2]
[403248600,1769279437750,-2000.0,0.00013844,2]
[403248601,1769279437760,-2000.0,0.00013844,2]
[403248602,1769279437769,-2000.0,0.00013844,2]
[403248603,1769279437778,-2000.0,0.00013844,2]
[403248604,1769279437787,-150.0,0.00013865,2]
[403248605,1769279437796,-823.0,0.00013877,2]
[403248606,1769279437809,-3292.0,0.00013896,2]
[403248607,1769279437818,-918.64355495,0.00013974,2]
[403248608,1769279437827,-214.79667536,0.00014176,2]
[403248609,1769279437836,-178.77712539,0.00014176,2]
[403248610,1769279437845,-334.5472959,0.00014247,2]
[403248611,1769279437854,-1102.0,0.00014251,2]
[403248612,1769279437863,-3062.56,0.00014384,2]
[403248613,1769279437872,-2408.40901104,0.00014392,2]
[403248614,1769279437881,-2500.0,0.00014392,2]
[403248615,1769279437890,-2500.0,0.00014392,2]
[403248616,1769279437899,-2500.0,0.00014392,2]
[403248617,1769279437908,-2500.0,0.00014392,2]
[403248618,1769279437918,-2500.0,0.00014392,2]
[403248619,1769279437927,-314.99405907,0.00014392,2]
[403248621,1769279437936,-768.36874926,0.00014392,2]
[403248623,1769279437946,-1000.0,0.00014406,2]
[403248625,1769279437956,-952.63336648,0.00014522,2]
[403248627,1769279437966,-180.3543553,0.00014588,2]
[403248629,1769279437975,-13196.5583287,0.0001459,2]
[403248631,1769279437985,-10014.89681194,0.0001459,2]
[403248633,1769279437994,-531.4641031,0.00014634,2]
[403248635,1769279438004,-500.0,0.00014634,2]
[403248638,1769279438014,-500.0,0.00014634,2]
[403248639,1769279438024,-500.0,0.00014634,2]
[403248642,1769279438034,-1815.48733601,0.00014708,2]
[403248644,1769279438043,-4866.83990877,0.00014865,2]
[403248646,1769279438052,-1500.0,0.00014873,2]
[403248647,1769279438062,-3000.0,0.0001494,2]
[403248649,1769279438071,-3000.0,0.0001494,2]
[403248652,1769279438081,-484.2666436,0.0001494,2]
[403248654,1769279438090,-3000.0,0.0001494,2]
[403248656,1769279438100,-1422.23642081,0.0001494,2]
[403248658,1769279438111,-1102.0,0.00014963,2]
[403248660,1769279438121,-500.0,0.0001499,2]
[403248662,1769279438130,-500.0,0.00015014,2]
[403248664,1769279438140,-900.0,0.00015068,2]
[403248666,1769279438149,-3062.56,0.00015068,2]
[403248668,1769279438159,-987.88080104,0.0001507,2]
[403248670,1769279438169,-245.0,0.00015169,2]
[403248672,1769279438182,-839.0,0.00015258,2]
[403248674,1769279438192,-4609.0,0.00015285,2]
[403248676,1769279438201,-152.0,0.00015306,3]
[403248678,1769279438211,-214.79667536,0.00015417,2]
[403248680,1769279438221,-13196.5583287,0.00015417,2]
[403248683,1769279438231,-10014.89681194,0.00015417,2]
[403248685,1769279438241,-3500.0,0.00015488,2]
[403248687,1769279438250,-3500.0,0.00015488,2]
[403248689,1769279438260,-3500.0,0.00015488,2]
[403248691,1769279438269,-250.0,0.00015488,2]
[403248693,1769279438280,-250.0,0.00015488,2]
[403248695,1769279438290,-250.0,0.00015488,2]
[403248697,1769279438300,-250.0,0.00015488,2]
[403248699,1769279438310,-250.0,0.00015488,2]
[403248701,1769279438319,-250.0,0.00015488,2]
[403248703,1769279438329,-250.0,0.00015488,2]
[403248705,1769279438339,-250.0,0.00015488,2]
[403248707,1769279438348,-250.0,0.00015488,2]
[403248709,1769279438358,-250.0,0.00015488,2]
[403248711,1769279438367,-346.92554585,0.00015616,2]
[403248713,1769279438376,-5432.0,0.00015617,2]
[403248715,1769279438386,-599.60298507,0.00015617,2]
[403248717,1769279438395,-1024.43239068,0.00015618,2]
[403248719,1769279438404,-1102.0,0.00015711,2]
[403248721,1769279438414,-166.66,0.00015718,2]
[403248723,1769279438423,-3062.56,0.00015753,2]
[403248725,1769279438432,-1815.48733601,0.00015772,2]
[403248727,1769279438442,-213.56,0.00015915,2]
[403248729,1769279438452,-150.0,0.00016,2]
[403248731,1769279438461,-253.570956,0.00016,2]
[403248733,1769279438471,-1000.0,0.00016007,2]
[403248735,1769279438480,-688.89,0.00016035,2]
[403248737,1769279438489,-266.17347274,0.00016035,2]
[403248739,1769279438498,-4000.0,0.00016036,2]
[403248741,1769279438508,-3416.08246383,0.00016036,2]
[403248743,1769279438519,-867.61787343,0.00016036,2]
[403248745,1769279438529,-166.66,0.00016049,2]
[403248747,1769279438538,-1103.92763779,0.00016166,2]
[403248749,1769279438548,-159.59843399,0.00016226,2]
[403248752,1769279438557,-13196.5583287,0.00016245,2]
[403248754,1769279438569,-10014.89681194,0.00016245,2]
[403248756,1769279438579,-3985.83,0.00016271,2]
[403248758,1769279438588,-150.0,0.00016274,2]
[403248760,1769279438597,-150.0,0.00016274,2]
[403248762,1769279438608,-150.0,0.00016274,2]
[403248763,1769279438618,-500.0,0.00016274,2]
[403248765,1769279438628,-150.0,0.00016274,2]
[403248767,1769279438638,-150.0,0.00016274,2]
[403248770,1769279438648,-150.0,0.00016274,2]
[403248771,1769279438658,-150.0,0.00016274,2]
[403248774,1769279438668,-150.0,0.00016274,2]
[403248776,1769279438682,-152.0,0.00016306,4]
[403248778,1769279438692,-150.0,0.00016329,2]
[403248780,1769279438701,-150.0,0.00016329,2]
[403248782,1769279438711,-150.0,0.00016329,2]
[403248784,1769279438720,-500.0,0.00016329,2]
[403248786,1769279438730,-150.0,0.00016329,2]
[403248788,1769279438740,-150.0,0.00016329,2]
[403248790,1769279438750,-150.0,0.00016329,2]
[403248792,1769279438760,-500.0,0.00016356,2]
[403248794,1769279438770,-500.0,0.00016356,2]
[403248796,1769279438780,-166.66,0.0001638,2]
[403248798,1769279438789,-151.0,0.00016381,2]
[403248800,1769279438799,-200.0,0.00016384,2]
[403248802,1769279438808,-200.0,0.00016384,2]
[403248804,1769279438818,-150.0,0.00016384,2]
[403248806,1769279438827,-197.42246964,0.00016384,2]
[403248808,1769279438837,-200.0,0.00016384,2]
[403248810,1769279438846,-200.0,0.00016384,2]
[403248812,1769279438856,-150.0,0.00016384,2]
[403248814,1769279438866,-857.0,0.000164,2]
[403248816,1769279438875,-316.743665,0.00016438,2]
[403248818,1769279438884,-893.69368956,0.00016438,2]
[403248820,1769279438894,-893.69368956,0.00016438,2]
[403248822,1769279438903,-893.69368956,0.00016438,2]
[403248824,1769279438913,-893.69368956,0.00016438,2]
[403248826,1769279438922,-893.69368956,0.00016438,2]
[403248828,1769279438932,-893.69368956,0.00016438,2]
[403248830,1769279438942,-893.69368956,0.00016438,2]
[403248832,1769279438951,-893.69368956,0.00016438,2]
[403248834,1769279438960,-893.69368956,0.00016438,2]
[403248836,1769279438969,-893.69368956,0.00016438,2]
[403248838,1769279438979,-893.69368956,0.00016438,2]
[403248840,1769279438988,-893.69368956,0.00016438,2]
[403248842,1769279438997,-893.69368956,0.00016438,2]
[403248844,1769279439006,-893.69368956,0.00016438,2]
[403248846,1769279439015,-893.69368956,0.00016438,2]
[403248848,1769279439025,-893.69368956,0.00016438,2]
[403248850,1769279439035,-893.69368956,0.00016438,2]
[403248852,1769279439045,-893.69368956,0.00016438,2]
[403248854,1769279439054,-893.69368956,0.00016438,2]
[403248856,1769279439064,-893.69368956,0.00016438,2]
[403248858,1769279439074,-893.69368956,0.00016438,2]
[403248860,1769279439084,-893.69368956,0.00016438,2]
[403248862,1769279439093,-893.69368956,0.00016438,2]
[403248864,1769279439104,-893.69368956,0.00016438,2]
[403248866,1769279439113,-893.69368956,0.00016438,2]
[403248868,1769279439124,-893.69368956,0.00016438,2]
[403248870,1769279439135,-893.69368956,0.00016438,2]
[403248872,1769279439144,-893.69368956,0.00016438,2]
[403248874,1769279439154,-893.69368956,0.00016438,2]
[403248877,1769279439165,-893.69368956,0.00016438,2]
[403248879,1769279439175,-893.69368956,0.00016438,2]
[403248881,1769279439185,-893.69368956,0.00016438,2]
[403248883,1769279439195,-893.69368956,0.00016438,2]
[403248885,1769279439205,-893.69368956,0.00016438,2]
[403248887,1769279439215,-893.69368956,0.00016438,2]
[403248889,1769279439225,-893.69368956,0.00016438,2]
[403248891,1769279439235,-893.69368956,0.00016438,2]
[403248893,1769279439245,-893.69368956,0.00016438,2]
[403248896,1769279439254,-893.69368956,0.00016438,2]
[403248898,1769279439264,-893.69368956,0.00016438,2]
[403248900,1769279439273,-893.69368956,0.00016438,2]
[403248902,1769279439283,-893.69368956,0.00016438,2]
[403248904,1769279439293,-893.69368956,0.00016438,2]
[403248906,1769279439303,-893.69368956,0.00016438,2]
[403248908,1769279439312,-893.69368956,0.00016438,2]
[403248910,1769279439322,-893.69368956,0.00016438,2]
[403248912,1769279439332,-893.69368956,0.00016438,2]
[403248914,1769279439341,-893.69368956,0.00016438,2]
[403248916,1769279439351,-893.69368956,0.00016438,2]
[403248918,1769279439360,-893.69368956,0.00016438,2]
[403248920,1769279439370,-893.69368956,0.00016438,2]
[403248922,1769279439379,-893.69368956,0.00016438,2]
[403248924,1769279439388,-893.69368956,0.00016438,2]
[403248926,1769279439398,-893.69368956,0.00016438,2]
[403248928,1769279439407,-893.69368956,0.00016438,2]
[403248930,1769279439417,-893.69368956,0.00016438,2]
[403248932,1769279439427,-893.69368956,0.00016438,2]
[403248934,1769279439436,-893.69368956,0.00016438,2]
[403248936,1769279439445,-893.69368956,0.00016438,2]
[403248938,1769279439455,-893.69368956,0.00016438,2]
[403248940,1769279439464,-893.69368956,0.00016438,2]
[403248942,1769279439474,-893.69368956,0.00016438,2]
[403248944,1769279439483,-1447.86952594,0.00016438,2]
[403248946,1769279439492,-1447.86952594,0.00016438,2]
[403248948,1769279439501,-1447.86952594,0.00016438,2]
[403248950,1769279439510,-1447.86952594,0.00016438,2]
[403248953,1769279439520,-1447.86952594,0.00016438,2]
[403248956,1769279439529,-1447.86952594,0.00016438,2]
[403248960,1769279439539,-1447.86952594,0.00016438,2]
[403248963,1769279439548,-1447.86952594,0.00016438,2]
[403248965,1769279439558,-1447.86952594,0.00016438,2]
[403248968,1769279439568,-1447.86952594,0.00016438,2]
[403248970,1769279439577,-1447.86952594,0.00016438,2]
[403248973,1769279439586,-1447.86952594,0.00016438,2]
[403248975,1769279439595,-1447.86952594,0.00016438,2]
[403248978,1769279439605,-1447.86952594,0.00016438,2]
[403248981,1769279439618,-1447.86952594,0.00016438,2]
[403248983,1769279439627,-1447.86952594,0.00016438,2]
[403248987,1769279439638,-1447.86952594,0.00016438,2]
[403248989,1769279439647,-1447.86952594,0.00016438,2]
[403248991,1769279439658,-1447.86952594,0.00016438,2]
[403248993,1769279439667,-1447.86952594,0.00016438,2]
[403248994,1769279439676,-1447.86952594,0.00016438,2]
[403248996,1769279439686,-1447.86952594,0.00016438,2]
[403248998,1769279439696,-1447.86952594,0.00016438,2]
[403249000,1769279439705,-1447.86952594,0.00016438,2]
[403249002,1769279439714,-1447.86952594,0.00016438,2]
[403249004,1769279439723,-1447.86952594,0.00016438,2]
[403249006,1769279439733,-1447.86952594,0.00016438,2]
[403249008,1769279439742,-1447.86952589,0.00016438,2]
[403249010,1769279439751,-500.0,0.00016438,2]
[403249012,1769279439761,-500.0,0.00016438,2]
[403249014,1769279439770,-500.0,0.00016438,2]
[403249016,1769279439780,-500.0,0.00016438,2]
[403249018,1769279439789,-500.0,0.00016438,2]
[403249020,1769279439799,-500.0,0.00016438,2]
[403249023,1769279439808,-500.0,0.00016438,2]
[403249025,1769279439817,-500.0,0.00016438,2]
[403249036,1769279439915,-500.0,0.00016438,2]
[403249038,1769279439925,-500.0,0.00016438,2]
[403249040,1769279439934,-500.0,0.00016438,2]
[403249042,1769279439944,-500.0,0.00016438,2]
[403249044,1769279439953,-500.0,0.00016438,2]
[403249046,1769279439961,-500.0,0.00016438,2]
[403249048,1769279439970,-500.0,0.00016438,2]
[403249050,1769279439979,-500.0,0.00016438,2]
[403249052,1769279439989,-500.0,0.00016438,2]
[403249054,1769279439998,-500.0,0.00016438,2]
[403249056,1769279440007,-900.0,0.00016438,2]
[403249058,1769279440016,-800.0,0.00016438,2]
[403249060,1769279440026,-3062.56,0.00016438,2]
[403249062,1769279440035,-151.0,0.00016438,2]
[403249064,1769279440045,-150.0,0.00016438,2]
[403249066,1769279440054,-165.25,0.0001644,2]
[403249068,1769279440063,-246.76380553,0.00016493,2]
[403249070,1769279440072,-9577.0107416,0.000165,2]
[403249073,1769279440081,-150.0,0.00016552,2]
[403249075,1769279440091,-150.0,0.00016552,2]
[403249077,1769279440100,-150.29145156,0.00016552,2]
[403249080,1769279440109,-4500.0,0.00016584,2]
[403249083,1769279440118,-1876.7,0.00016632,2]
[403249086,1769279440128,-214.79667536,0.00016659,2]
[403249088,1769279440137,-166.66,0.00016711,2]
[403249090,1769279440147,-836.0,0.0001672,2]
[403249092,1769279440156,-324.33,0.00016744,2]
[403249094,1769279440165,-1876.7,0.00016756,2]
[403249095,1769279440175,-500.0,0.00016806,2]
[403249097,1769279440184,-295.86,0.00016809,2]
[403249099,1769279440194,-6453.0,0.00016814,2]
[403249101,1769279440203,-1815.48733601,0.00016836,2]
[403249103,1769279440212,-150.0,0.0001686,2]
[403249106,1769279440222,-163.215227,0.0001686,2]
[403249107,1769279440231,-500.0,0.0001686,2]
[403249109,1769279440241,-500.0,0.0001686,2]
[403249111,1769279440250,-500.0,0.0001686,2]
[403249114,1769279440260,-500.0,0.0001686,2]
[403249116,1769279440270,-500.0,0.0001686,2]
[403249118,1769279440281,-162.86883444,0.0001686,2]
[403249119,1769279440290,-163.10376799,0.0001686,2]
[403249122,1769279440300,-500.0,0.0001686,2]
[403249124,1769279440309,-500.0,0.0001686,2]
[403249125,1769279440318,-161.20666181,0.0001686,2]
[403249128,1769279440327,-333.14308792,0.0001686,2]
[403249129,1769279440337,-161.7441045,0.0001686,2]
[403249131,1769279440346,-500.0,0.0001686,2]
[403249133,1769279440355,-500.0,0.0001686,2]
[403249135,1769279440364,-500.0,0.0001686,2]
[403249137,1769279440373,-500.0,0.0001686,2]
[403249139,1769279440382,-150.87644931,0.0001686,2]
[403249142,1769279440392,-500.0,0.0001686,2]
[403249144,1769279440401,-558.82608128,0.0001686,2]
[403249146,1769279440410,-208.11665623,0.0001686,2]
[403249148,1769279440419,-521.52144255,0.0001686,2]
[403249150,1769279440428,-161.29695591,0.0001686,2]
[403249152,1769279440437,-300.0,0.0001686,2]
[403249154,1769279440446,-500.0,0.0001686,2]
[403249156,1769279440455,-500.0,0.0001686,2]
[403249158,1769279440465,-500.0,0.0001686,2]
[403249160,1769279440474,-500.0,0.0001686,2]
[403249161,1769279440483,-500.0,0.0001686,2]
[403249163,1769279440492,-500.0,0.0001686,2]
[403249165,1769279440501,-500.0,0.0001686,2]
[403249167,1769279440510,-500.0,0.0001686,2]
[403249169,1769279440519,-159.93585942,0.0001686,2]
[403249171,1769279440529,-160.04899722,0.0001686,2]
[403249173,1769279440538,-500.0,0.0001686,2]
[403249175,1769279440546,-500.0,0.0001686,2]
[403249177,1769279440555,-500.0,0.0001686,2]
[403249179,1769279440564,-158.06916035,0.0001686,2]
[403249181,1769279440574,-500.0,0.0001686,2]
[403249184,1769279440583,-500.0,0.0001686,2]
[403249186,1769279440592,-500.0,0.0001686,2]
[403249188,1769279440602,-500.0,0.0001686,2]
[403249190,1769279440613,-500.0,0.0001686,2]
[403249192,1769279440622,-500.0,0.0001686,2]
[403249194,1769279440630,-500.0,0.0001686,2]
[403249196,1769279440639,-160.04998238,0.0001686,2]
[403249198,1769279440648,-160.30101054,0.0001686,2]
[403249200,1769279440658,-500.0,0.0001686,2]
[403249202,1769279440670,-500.0,0.0001686,2]
[403249204,1769279440679,-500.0,0.0001686,2]
[403249206,1769279440688,-573.18204786,0.0001686,2]
[403249208,1769279440697,-500.0,0.0001686,2]
[403249210,1769279440706,-336.33747242,0.0001686,2]
[403249212,1769279440715,-160.05036115,0.0001686,2]
[403249214,1769279440724,-160.05079201,0.0001686,2]
[403249216,1769279440733,-500.0,0.0001686,2]
[403249218,1769279440742,-335.93123339,0.0001686,2]
[403249220,1769279440751,-500.0,0.0001686,2]
[403249222,1769279440760,-500.0,0.0001686,2]
[403249224,1769279440769,-500.0,0.0001686,2]
[403249226,1769279440779,-500.0,0.0001686,2]
[403249228,1769279440788,-500.0,0.0001686,2]
[403249230,1769279440797,-500.0,0.0001686,2]
[403249232,1769279440806,-500.0,0.0001686,2]
[403249234,1769279440815,-500.0,0.0001686,2]
[403249236,1769279440824,-500.0,0.0001686,2]
[403249238,1769279440833,-160.05242782,0.0001686,2]
[403249240,1769279440842,-160.05235331,0.0001686,2]
[403249242,1769279440851,-160.0507877,0.0001686,2]
[403249244,1769279440860,-160.03828545,0.0001686,2]
[403249246,1769279440869,-160.95253726,0.0001686,2]
[403249248,1769279440878,-512.1744801,0.0001686,2]
[403249250,1769279440887,-180.05440168,0.0001686,2]
[403249252,1769279440896,-160.04994992,0.0001686,2]
[403249254,1769279440905,-160.05160425,0.0001686,2]
[403249256,1769279440915,-160.03318119,0.0001686,2]
[403249258,1769279440924,-500.0,0.0001686,2]
[403249260,1769279440933,-162.47485834,0.0001686,2]
[403249262,1769279440942,-500.0,0.0001686,2]
[403249264,1769279440951,-511.74783648,0.0001686,2]
[403249266,1769279440960,-500.0,0.0001686,2]
[403249268,1769279440969,-165.72236604,0.0001686,2]
[403249270,1769279440978,-500.30897129,0.0001686,2]
[403249272,1769279440987,-500.0,0.0001686,2]
[403249274,1769279440996,-500.0,0.0001686,2]
[403249276,1769279441006,-167.78129088,0.0001686,2]
[403249278,1769279441015,-548.15607658,0.0001686,2]
[403249280,1769279441025,-500.0,0.0001686,2]
[403249282,1769279441034,-161.24700646,0.0001686,2]
[403249284,1769279441043,-284.08136107,0.0001686,2]
[403249286,1769279441052,-508.83270828,0.0001686,2]
[403249288,1769279441062,-470.97442466,0.0001686,2]
[403249290,1769279441071,-500.0,0.0001686,2]
[403249292,1769279441080,-500.0,0.0001686,2]
[403249294,1769279441088,-500.0,0.0001686,2]
[403249296,1769279441098,-500.0,0.0001686,2]
[403249298,1769279441106,-500.0,0.0001686,2]
[403249300,1769279441116,-500.0,0.0001686,2]
[403249301,1769279441125,-161.91357387,0.0001686,2]
[403249303,1769279441134,-376.31157826,0.0001686,2]
[403249306,1769279441143,-500.0,0.0001686,2]
[403249308,1769279441153,-208.57012707,0.0001686,2]
[403249310,1769279441162,-161.03754612,0.0001686,2]
[403249312,1769279441172,-500.0,0.0001686,2]
[403249314,1769279441180,-169.51216753,0.0001686,2]
[403249316,1769279441190,-500.0,0.0001686,2]
[403249318,1769279441199,-500.0,0.0001686,2]
[403249320,1769279441208,-485.5720463,0.0001686,2]
[403249322,1769279441217,-500.0,0.0001686,2]
[403249324,1769279441226,-166.43972344,0.0001686,2]
[403249326,1769279441236,-500.0,0.0001686,2]
[403249328,1769279441246,-308.89625283,0.0001686,2]
[403249330,1769279441255,-164.56853003,0.0001686,2]
[403249332,1769279441264,-1876.7,0.00016881,2]
[403249334,1769279441273,-740.1790973,0.000169,2]
[403249336,1769279441283,-299.99,0.00016922,4]
[403249338,1769279441292,-150.99,0.00016922,2]
[403249340,1769279441302,-999.99,0.00016922,2]
[403249342,1769279441311,-310.44,0.00016922,2]
[403249344,1769279441321,-359.76179104,0.00016985,2]
[403249346,1769279441329,-500.0,0.00016987,2]
[403249348,1769279441338,-500.0,0.00016987,2]
[403249350,1769279441348,-500.0,0.00016987,2]
[403249352,1769279441357,-500.0,0.00016987,2]
[403249354,1769279441368,-500.0,0.00016987,2]
[403249356,1769279441378,-500.0,0.00016987,2]
[403249358,1769279441387,-500.0,0.00016987,2]
[403249360,1769279441396,-238.3883883,0.00016987,2]
[403249362,1769279441405,-150.0,0.00016991,2]
[403249364,1769279441415,-292306.81961555,0.00017,2]
[403249366,1769279441424,-160.0,0.00017,2]
[403249368,1769279441434,-3207.48934641,0.00017,2]
[403249370,1769279441443,-1876.7,0.00017005,2]
[403249372,1769279441452,-4609.96,0.00017007,2]
[403249374,1769279441462,-166.66,0.00017042,2]
[403249376,1769279441472,-13196.5583287,0.00017072,2]
[403249378,1769279441481,-10014.89681194,0.00017072,2]
[403249380,1769279441490,-446.04265821,0.000171,2]
[403249382,1769279441499,-188.99,0.000171,2]
[403249384,1769279441509,-2000.0,0.000171,2]
[403249386,1769279441519,-1876.7,0.00017129,2]
[403249388,1769279441529,-1631.17868896,0.00017132,2]
[403249390,1769279441538,-188.99,0.00017164,2]